[Event "Titled Tuesday Blitz April 05 Early 2022"]
[White "Melaugh, Shane"]
[Black "Shandrygin, Nikita"]
[WhiteFideId "2509580"]
[BlackFideId "24198668"]
[WhiteElo "1972"]
[BlackElo "2323"]
[Result "0-1"]
[Round "04"]
[TimeControl "180+1"]
[Date "2022.04.05"]
[WhiteClock "0:00:07"]
[BlackClock "0:00:21"]

1. c4 {[%clk 0:03:00]}  Nf6 {[%clk 0:02:59]} 2. Nc3 {[%clk 0:02:59]}  d5 {[%clk 0:03:00]} 3. cxd5 {[%clk 0:02:58]}  Nxd5 {[%clk 0:03:01]} 4. g3 {[%clk 0:02:55]}  g6 {[%clk 0:03:01]} 5. Bg2 {[%clk 0:02:54]}  Nb6 {[%clk 0:03:01]} 6. h4 {[%clk 0:02:51]}  h6 {[%clk 0:03:01]} 7. d3 {[%clk 0:02:49]}  Bg7 {[%clk 0:03:01]} 8. Nf3 {[%clk 0:02:41]}  Nc6 {[%clk 0:03:00]} 9. Be3 {[%clk 0:02:38]}  e5 {[%clk 0:03:00]} 10. Qd2 {[%clk 0:02:37]}  Nd4 {[%clk 0:03:00]} 11. O-O {[%clk 0:02:24]}  Bg4 {[%clk 0:02:58]} 12. Ne1 {[%clk 0:02:23]}  c6 {[%clk 0:02:57]} 13. Nc2 {[%clk 0:02:20]}  Qd7 {[%clk 0:02:49]} 14. Ne4 {[%clk 0:02:19]}  Nd5 {[%clk 0:02:47]} 15. Nc5 {[%clk 0:02:16]}  Qe7 {[%clk 0:02:47]} 16. Nb3 {[%clk 0:02:00]}  Nxc2 {[%clk 0:02:26]} 17. Qxc2 {[%clk 0:01:58]}  Nxe3 {[%clk 0:02:27]} 18. fxe3 {[%clk 0:01:59]}  h5 {[%clk 0:02:14]} 19. Nc5 {[%clk 0:01:57]}  Bh6 {[%clk 0:02:13]} 20. Nxb7 {[%clk 0:01:54]}  Bxe3+ {[%clk 0:02:09]} 21. Kh2 {[%clk 0:01:54]}  O-O {[%clk 0:02:08]} 22. Qxc6 {[%clk 0:01:40]}  Rac8 {[%clk 0:01:56]} 23. Qe4 {[%clk 0:01:34]}  Bb6 {[%clk 0:01:51]} 24. Rac1 {[%clk 0:01:23]}  Rxc1 {[%clk 0:01:02]} 25. Rxc1 {[%clk 0:01:24]}  Rb8 {[%clk 0:01:02]} 26. b4 {[%clk 0:01:04]}  g5 {[%clk 0:00:53]} 27. hxg5 {[%clk 0:00:55]}  Qxg5 {[%clk 0:00:51]} 28. Rf1 {[%clk 0:00:32]}  h4 {[%clk 0:00:50]} 29. Bf3 {[%clk 0:00:28]}  hxg3+ {[%clk 0:00:16]} 30. Kg2 {[%clk 0:00:28]}  Bf5 {[%clk 0:00:16]} 31. Qxe5 {[%clk 0:00:25]}  Bh3+ {[%clk 0:00:16]} 32. Kxh3 {[%clk 0:00:20]}  Qxe5 {[%clk 0:00:17]} 33. Be4 {[%clk 0:00:18]}  Kg7 {[%clk 0:00:17]} 34. Rf3 {[%clk 0:00:18]}  Rh8+ {[%clk 0:00:18]} 35. Kg2 {[%clk 0:00:18]}  Rh2+ {[%clk 0:00:18]} 36. Kf1 {[%clk 0:00:18]}  Rf2+ {[%clk 0:00:19]} 37. Rxf2 {[%clk 0:00:19]}  gxf2 {[%clk 0:00:20]} 38. Nc5 {[%clk 0:00:18]}  Qa1+ {[%clk 0:00:21]} 39. Kxf2 {[%clk 0:00:17]}  Qd4+ {[%clk 0:00:20]} 40. e3 {[%clk 0:00:17]}  Qb2+ {[%clk 0:00:20]} 41. Kf3 {[%clk 0:00:17]}  Bxc5 {[%clk 0:00:21]} 42. bxc5 {[%clk 0:00:18]}  Qxa2 {[%clk 0:00:22]} 43. d4 {[%clk 0:00:19]}  a5 {[%clk 0:00:21]} 44. c6 {[%clk 0:00:19]}  Qc4 {[%clk 0:00:21]} 45. d5 {[%clk 0:00:19]}  Kf6 {[%clk 0:00:21]} 46. d6 {[%clk 0:00:16]}  Ke5 {[%clk 0:00:21]} 47. d7 {[%clk 0:00:07]}  Qxe4+ {[%clk 0:00:21]} 48. Kf2 {[%clk 0:00:07]}  Qd5 {[%clk 0:00:21]} 49. c7 {[%clk 0:00:07]}  Qxd7 {[%clk 0:00:21]} 0-1


[Site "https://www.chess.com"]

[Event "Titled Tuesday Blitz April 05 Early 2022"]
[White "Mikhnenko, Alexander"]
[Black "Goryachkina, Aleksandra"]
[WhiteFideId "34143014"]
[BlackFideId "4147103"]
[WhiteElo "2117"]
[BlackElo "2426"]
[Result "0-1"]
[Round "04"]
[TimeControl "180+1"]
[Date "2022.04.05"]
[WhiteClock "0:00:02"]
[BlackClock "0:00:26"]

1. e4 {[%clk 0:03:00]}  e6 {[%clk 0:02:59]} 2. d4 {[%clk 0:03:00]}  d5 {[%clk 0:02:59]} 3. Nc3 {[%clk 0:03:00]}  Bb4 {[%clk 0:02:58]} 4. e5 {[%clk 0:02:59]}  c5 {[%clk 0:02:58]} 5. a3 {[%clk 0:02:59]}  Bxc3+ {[%clk 0:02:59]} 6. bxc3 {[%clk 0:02:59]}  Ne7 {[%clk 0:02:59]} 7. Bd3 {[%clk 0:02:51]}  Qa5 {[%clk 0:02:49]} 8. Bd2 {[%clk 0:02:48]}  Qa4 {[%clk 0:02:48]} 9. Qb1 {[%clk 0:02:37]}  c4 {[%clk 0:02:43]} 10. Be2 {[%clk 0:02:36]}  Nbc6 {[%clk 0:02:42]} 11. f4 {[%clk 0:02:35]}  b6 {[%clk 0:02:32]} 12. Nf3 {[%clk 0:02:35]}  Bd7 {[%clk 0:02:31]} 13. O-O {[%clk 0:02:34]}  O-O-O {[%clk 0:02:30]} 14. Kh1 {[%clk 0:02:21]}  f6 {[%clk 0:02:27]} 15. Qb2 {[%clk 0:02:17]}  Be8 {[%clk 0:02:14]} 16. Rae1 {[%clk 0:02:16]}  Bg6 {[%clk 0:02:11]} 17. Bd1 {[%clk 0:02:14]}  Be4 {[%clk 0:02:09]} 18. Bc1 {[%clk 0:01:58]}  h6 {[%clk 0:02:01]} 19. Nd2 {[%clk 0:01:51]}  f5 {[%clk 0:01:55]} 20. Bf3 {[%clk 0:01:38]}  g5 {[%clk 0:01:45]} 21. Nxe4 {[%clk 0:01:08]}  dxe4 {[%clk 0:01:42]} 22. Be2 {[%clk 0:01:08]}  g4 {[%clk 0:01:18]} 23. Bd2 {[%clk 0:00:33]}  Nd5 {[%clk 0:01:16]} 24. Rb1 {[%clk 0:00:30]}  a6 {[%clk 0:01:12]} 25. Be1 {[%clk 0:00:22]}  b5 {[%clk 0:01:09]} 26. Rc1 {[%clk 0:00:15]}  h5 {[%clk 0:01:07]} 27. Rb1 {[%clk 0:00:15]}  h4 {[%clk 0:01:06]} 28. Rc1 {[%clk 0:00:15]}  h3 {[%clk 0:01:06]} 29. g3 {[%clk 0:00:15]}  Kc7 {[%clk 0:00:56]} 30. Bd2 {[%clk 0:00:15]}  Nb6 {[%clk 0:00:44]} 31. Ra1 {[%clk 0:00:14]}  Ne7 {[%clk 0:00:38]} 32. Qb4 {[%clk 0:00:12]}  Ned5 {[%clk 0:00:34]} 33. Qc5+ {[%clk 0:00:06]}  Kb7 {[%clk 0:00:34]} 34. Rfb1 {[%clk 0:00:03]}  Rd7 {[%clk 0:00:30]} 35. Rb4 {[%clk 0:00:01]}  Nxb4 {[%clk 0:00:28]} 36. Qxb4 {[%clk 0:00:02]}  Qxc2 {[%clk 0:00:26]} 0-1


[Site "https://www.chess.com"]

[Event "Titled Tuesday Blitz April 05 Early 2022"]
[White "Mkrtchyan, Mariam"]
[Black "Araujo Filho, Luiz Antonio Coel"]
[WhiteFideId "13310828"]
[BlackFideId "2130661"]
[WhiteElo "1984"]
[BlackElo "2254"]
[Result "1-0"]
[Round "04"]
[TimeControl "180+1"]
[Date "2022.04.05"]
[WhiteClock "0:02:04"]
[BlackClock "0:00:03"]

1. Nf3 {[%clk 0:03:00]}  f5 {[%clk 0:02:58]} 2. g3 {[%clk 0:03:01]}  Nf6 {[%clk 0:02:56]} 3. Bg2 {[%clk 0:03:01]}  g6 {[%clk 0:02:56]} 4. O-O {[%clk 0:03:02]}  Bg7 {[%clk 0:02:57]} 5. c4 {[%clk 0:03:03]}  O-O {[%clk 0:02:57]} 6. Nc3 {[%clk 0:03:03]}  d6 {[%clk 0:02:56]} 7. d4 {[%clk 0:03:03]}  Nc6 {[%clk 0:02:57]} 8. d5 {[%clk 0:03:02]}  Na5 {[%clk 0:02:57]} 9. Nd2 {[%clk 0:03:02]}  c5 {[%clk 0:02:57]} 10. dxc6 {[%clk 0:03:03]}  Nxc6 {[%clk 0:02:58]} 11. Rb1 {[%clk 0:02:57]}  Rb8 {[%clk 0:02:54]} 12. b3 {[%clk 0:02:57]}  e5 {[%clk 0:02:48]} 13. Bb2 {[%clk 0:02:53]}  Nd4 {[%clk 0:02:34]} 14. e3 {[%clk 0:02:53]}  Ne6 {[%clk 0:02:31]} 15. Qe2 {[%clk 0:02:54]}  Bd7 {[%clk 0:02:26]} 16. Rfd1 {[%clk 0:02:54]}  Bc6 {[%clk 0:02:22]} 17. h3 {[%clk 0:02:50]}  Bxg2 {[%clk 0:02:05]} 18. Kxg2 {[%clk 0:02:49]}  Qe7 {[%clk 0:02:05]} 19. Ba3 {[%clk 0:02:46]}  Nc5 {[%clk 0:01:51]} 20. b4 {[%clk 0:02:40]}  Ne6 {[%clk 0:01:51]} 21. Nb3 {[%clk 0:02:39]}  a6 {[%clk 0:01:35]} 22. b5 {[%clk 0:02:35]}  Rbd8 {[%clk 0:01:13]} 23. Rb2 {[%clk 0:02:30]}  g5 {[%clk 0:00:42]} 24. Rbd2 {[%clk 0:02:29]}  Ne8 {[%clk 0:00:34]} 25. c5 {[%clk 0:02:16]}  dxc5 {[%clk 0:00:09]} 26. Rxd8 {[%clk 0:02:13]}  Nxd8 {[%clk 0:00:07]} 27. Bxc5 {[%clk 0:02:13]}  Qc7 {[%clk 0:00:04]} 28. Bxf8 {[%clk 0:02:11]}  Bxf8 {[%clk 0:00:04]} 29. Qd3 {[%clk 0:02:05]}  Ne6 {[%clk 0:00:03]} 30. Nd5 {[%clk 0:02:04]} 1-0


[Site "https://www.chess.com"]

[Event "Titled Tuesday Blitz April 05 Early 2022"]
[White "Narayanan, Srinath"]
[Black "Lehtosaari, Mauri"]
[WhiteFideId "5018420"]
[BlackFideId "501999"]
[WhiteElo "2472"]
[BlackElo "2555"]
[Result "1-0"]
[Round "04"]
[TimeControl "180+1"]
[Date "2022.04.05"]
[WhiteClock "0:01:15"]
[BlackClock "0:00:07"]

1. Nf3 {[%clk 0:03:00]}  d5 {[%clk 0:02:59]} 2. e3 {[%clk 0:03:00]}  Nf6 {[%clk 0:03:00]} 3. c4 {[%clk 0:03:00]}  c6 {[%clk 0:03:00]} 4. Nc3 {[%clk 0:03:00]}  a6 {[%clk 0:03:00]} 5. d4 {[%clk 0:02:59]}  b5 {[%clk 0:02:59]} 6. cxd5 {[%clk 0:02:56]}  cxd5 {[%clk 0:03:00]} 7. Bd3 {[%clk 0:02:57]}  Bg4 {[%clk 0:03:00]} 8. h3 {[%clk 0:02:57]}  Bh5 {[%clk 0:02:59]} 9. a4 {[%clk 0:02:55]}  b4 {[%clk 0:02:59]} 10. Ne2 {[%clk 0:02:55]}  Bxf3 {[%clk 0:02:57]} 11. gxf3 {[%clk 0:02:56]}  e6 {[%clk 0:02:57]} 12. a5 {[%clk 0:02:56]}  Nc6 {[%clk 0:02:49]} 13. Qa4 {[%clk 0:02:55]}  Qd7 {[%clk 0:02:44]} 14. Bd2 {[%clk 0:02:55]}  Bd6 {[%clk 0:02:38]} 15. Rc1 {[%clk 0:02:53]}  Ne7 {[%clk 0:02:28]} 16. Qxd7+ {[%clk 0:02:49]}  Kxd7 {[%clk 0:02:28]} 17. e4 {[%clk 0:02:48]}  e5 {[%clk 0:02:01]} 18. b3 {[%clk 0:02:17]}  Nc6 {[%clk 0:01:21]} 19. exd5 {[%clk 0:02:15]}  Nxd4 {[%clk 0:01:03]} 20. Nxd4 {[%clk 0:02:13]}  exd4 {[%clk 0:01:04]} 21. Rc6 {[%clk 0:02:14]}  g6 {[%clk 0:00:57]} 22. Bf4 {[%clk 0:01:37]}  Bxf4 {[%clk 0:00:30]} 23. Rxf6 {[%clk 0:01:36]}  Rhe8+ {[%clk 0:00:29]} 24. Kd1 {[%clk 0:01:26]}  Rac8 {[%clk 0:00:20]} 25. Rxf4 {[%clk 0:01:23]}  Rc3 {[%clk 0:00:16]} 26. Bxa6 {[%clk 0:01:18]}  Rxb3 {[%clk 0:00:14]} 27. Bb5+ {[%clk 0:01:17]}  Kd6 {[%clk 0:00:14]} 28. Bxe8 {[%clk 0:01:14]}  Rb1+ {[%clk 0:00:12]} 29. Kc2 {[%clk 0:01:15]}  Rxh1 {[%clk 0:00:09]} 30. Rxd4 {[%clk 0:01:15]}  Kc5 {[%clk 0:00:09]} 31. d6 {[%clk 0:01:14]}  Kxd4 {[%clk 0:00:06]} 32. d7 {[%clk 0:01:15]}  b3+ {[%clk 0:00:07]} 33. Kb2 {[%clk 0:01:15]} 1-0


[Site "https://www.chess.com"]

[Event "Titled Tuesday Blitz April 05 Early 2022"]
[White "Niyazgulova, Marina"]
[Black "Ivanov, Mike"]
[WhiteFideId "24142573"]
[BlackFideId "2613158"]
[WhiteElo "2046"]
[BlackElo "2182"]
[Result "1-0"]
[Round "04"]
[TimeControl "180+1"]
[Date "2022.04.05"]
[WhiteClock "0:00:20"]
[BlackClock "0:00:04"]

1. d4 {[%clk 0:03:00]}  Nf6 {[%clk 0:02:59]} 2. c4 {[%clk 0:03:00]}  e6 {[%clk 0:02:58]} 3. Nc3 {[%clk 0:03:00]}  Bb4 {[%clk 0:02:58]} 4. Qc2 {[%clk 0:03:00]}  O-O {[%clk 0:02:53]} 5. Bg5 {[%clk 0:02:59]}  h6 {[%clk 0:02:48]} 6. Bxf6 {[%clk 0:02:59]}  Qxf6 {[%clk 0:02:48]} 7. Nf3 {[%clk 0:02:59]}  c5 {[%clk 0:02:33]} 8. e3 {[%clk 0:02:55]}  Nc6 {[%clk 0:02:22]} 9. Rd1 {[%clk 0:02:49]}  cxd4 {[%clk 0:02:20]} 10. Nxd4 {[%clk 0:02:43]}  Nxd4 {[%clk 0:02:14]} 11. Rxd4 {[%clk 0:02:42]}  d6 {[%clk 0:01:15]} 12. Be2 {[%clk 0:02:29]}  Bd7 {[%clk 0:01:13]} 13. O-O {[%clk 0:02:29]}  Bc6 {[%clk 0:01:12]} 14. Ne4 {[%clk 0:02:21]}  Bxe4 {[%clk 0:01:02]} 15. Rxe4 {[%clk 0:02:21]}  e5 {[%clk 0:01:00]} 16. a3 {[%clk 0:02:14]}  Bc5 {[%clk 0:01:00]} 17. b4 {[%clk 0:02:13]}  Bb6 {[%clk 0:00:59]} 18. Rd1 {[%clk 0:01:59]}  Rac8 {[%clk 0:00:56]} 19. Rg4 {[%clk 0:01:50]}  Rfd8 {[%clk 0:00:52]} 20. Bf3 {[%clk 0:01:36]}  Qe6 {[%clk 0:00:48]} 21. Qe2 {[%clk 0:01:25]}  Qe7 {[%clk 0:00:17]} 22. Bd5 {[%clk 0:01:22]}  Rc7 {[%clk 0:00:17]} 23. Rg3 {[%clk 0:01:20]}  Qf6 {[%clk 0:00:17]} 24. Qg4 {[%clk 0:01:14]}  Kf8 {[%clk 0:00:16]} 25. Rf3 {[%clk 0:01:14]}  Qg5 {[%clk 0:00:14]} 26. Qe6 {[%clk 0:01:07]}  Rdd7 {[%clk 0:00:06]} 27. Rf5 {[%clk 0:00:44]}  Qe7 {[%clk 0:00:04]} 28. Qg6 {[%clk 0:00:42]}  Kg8 {[%clk 0:00:01]} 29. Rxf7 {[%clk 0:00:33]}  Qxf7 {[%clk 0:00:02]} 30. Bxf7+ {[%clk 0:00:33]}  Rxf7 {[%clk 0:00:02]} 31. Rxd6 {[%clk 0:00:33]}  Rxc4 {[%clk 0:00:03]} 32. g3 {[%clk 0:00:25]}  Rc1+ {[%clk 0:00:03]} 33. Kg2 {[%clk 0:00:25]}  Ra1 {[%clk 0:00:04]} 34. Re6 {[%clk 0:00:20]} 1-0


[Site "https://www.chess.com"]

[Event "Titled Tuesday Blitz April 05 Early 2022"]
[White "Papasimakopoulos, Alexandros"]
[Black "Dixit, Nikhil"]
[WhiteFideId "4244125"]
[BlackFideId "5059534"]
[WhiteElo "2340"]
[BlackElo "2223"]
[Result "0-1"]
[Round "04"]
[TimeControl "180+1"]
[Date "2022.04.05"]
[WhiteClock "0:00:52"]
[BlackClock "0:01:20"]

1. d4 {[%clk 0:02:55]}  Nf6 {[%clk 0:02:59]} 2. c4 {[%clk 0:02:55]}  g6 {[%clk 0:03:00]} 3. Nc3 {[%clk 0:02:55]}  Bg7 {[%clk 0:03:00]} 4. e4 {[%clk 0:02:56]}  d6 {[%clk 0:03:01]} 5. f3 {[%clk 0:02:57]}  O-O {[%clk 0:03:01]} 6. Nge2 {[%clk 0:02:57]}  c5 {[%clk 0:03:02]} 7. d5 {[%clk 0:02:53]}  e6 {[%clk 0:03:02]} 8. Ng3 {[%clk 0:02:53]}  exd5 {[%clk 0:03:02]} 9. cxd5 {[%clk 0:02:53]}  Na6 {[%clk 0:03:01]} 10. Be2 {[%clk 0:02:53]}  Nc7 {[%clk 0:03:01]} 11. O-O {[%clk 0:02:45]}  Rb8 {[%clk 0:02:54]} 12. a4 {[%clk 0:02:44]}  b6 {[%clk 0:02:54]} 13. f4 {[%clk 0:02:19]}  a6 {[%clk 0:02:53]} 14. e5 {[%clk 0:02:18]}  dxe5 {[%clk 0:02:53]} 15. fxe5 {[%clk 0:02:19]}  Nfxd5 {[%clk 0:02:50]} 16. Nce4 {[%clk 0:01:52]}  Bxe5 {[%clk 0:02:50]} 17. Bg5 {[%clk 0:01:51]}  f6 {[%clk 0:02:34]} 18. Bh6 {[%clk 0:01:51]}  Rf7 {[%clk 0:02:34]} 19. Bc4 {[%clk 0:01:49]}  Be6 {[%clk 0:02:33]} 20. Qe2 {[%clk 0:01:41]}  Qd7 {[%clk 0:02:22]} 21. Rad1 {[%clk 0:01:32]}  Re8 {[%clk 0:02:19]} 22. b3 {[%clk 0:01:24]}  Bd4+ {[%clk 0:02:18]} 23. Kh1 {[%clk 0:01:22]}  Bg4 {[%clk 0:02:13]} 24. Qd3 {[%clk 0:01:13]}  Bxd1 {[%clk 0:02:10]} 25. Qxd1 {[%clk 0:01:13]}  b5 {[%clk 0:02:07]} 26. axb5 {[%clk 0:01:13]}  axb5 {[%clk 0:02:08]} 27. Bd3 {[%clk 0:01:10]}  f5 {[%clk 0:01:50]} 28. Ng5 {[%clk 0:01:08]}  Rfe7 {[%clk 0:01:50]} 29. Nxf5 {[%clk 0:00:57]}  gxf5 {[%clk 0:01:44]} 30. Bxf5 {[%clk 0:00:58]}  Qxf5 {[%clk 0:01:36]} 31. Rxf5 {[%clk 0:00:57]}  Re1+ {[%clk 0:01:36]} 32. Rf1 {[%clk 0:00:58]}  Rxd1 {[%clk 0:01:37]} 33. Rxd1 {[%clk 0:00:59]}  Ne3 {[%clk 0:01:26]} 34. Rc1 {[%clk 0:00:53]}  Nf5 {[%clk 0:01:23]} 35. Nf3 {[%clk 0:00:53]}  Nxh6 {[%clk 0:01:19]} 36. Nxd4 {[%clk 0:00:53]}  cxd4 {[%clk 0:01:20]} 37. Rxc7 {[%clk 0:00:54]}  Rd8 {[%clk 0:01:20]} 38. Kg1 {[%clk 0:00:51]}  d3 {[%clk 0:01:20]} 39. Rd7 {[%clk 0:00:52]}  Rxd7 {[%clk 0:01:20]} 0-1


[Site "https://www.chess.com"]

[Event "Titled Tuesday Blitz April 05 Early 2022"]
[White "Pesotskiy, Mikhail"]
[Black "Pischal, Yulia"]
[WhiteFideId "34164453"]
[BlackFideId "14102390"]
[WhiteElo "2010"]
[BlackElo "1931"]
[Result "1-0"]
[Round "04"]
[TimeControl "180+1"]
[Date "2022.04.05"]
[WhiteClock "0:00:18"]
[BlackClock "0:00:05"]

1. d4 {[%clk 0:02:50]}  f5 {[%clk 0:02:58]} 2. c4 {[%clk 0:02:50]}  Nf6 {[%clk 0:02:58]} 3. g3 {[%clk 0:02:51]}  g6 {[%clk 0:02:58]} 4. Bg2 {[%clk 0:02:51]}  Bg7 {[%clk 0:02:58]} 5. Nc3 {[%clk 0:02:52]}  O-O {[%clk 0:02:59]} 6. Nf3 {[%clk 0:02:53]}  d6 {[%clk 0:03:00]} 7. O-O {[%clk 0:02:54]}  Nc6 {[%clk 0:03:00]} 8. d5 {[%clk 0:02:55]}  Na5 {[%clk 0:03:00]} 9. b3 {[%clk 0:02:54]}  c5 {[%clk 0:02:58]} 10. Qc2 {[%clk 0:02:39]}  Bd7 {[%clk 0:02:56]} 11. Bb2 {[%clk 0:02:37]}  Qc7 {[%clk 0:02:51]} 12. e4 {[%clk 0:02:34]}  fxe4 {[%clk 0:02:36]} 13. Ng5 {[%clk 0:02:31]}  Bf5 {[%clk 0:02:31]} 14. Ncxe4 {[%clk 0:02:16]}  Qd7 {[%clk 0:02:23]} 15. Rae1 {[%clk 0:01:59]}  b5 {[%clk 0:02:22]} 16. Qc3 {[%clk 0:01:53]}  Nb7 {[%clk 0:02:12]} 17. Ne6 {[%clk 0:01:42]}  Bxe6 {[%clk 0:02:07]} 18. dxe6 {[%clk 0:01:42]}  Qe8 {[%clk 0:01:42]} 19. Ng5 {[%clk 0:01:20]}  Rb8 {[%clk 0:01:30]} 20. Nf7 {[%clk 0:01:18]}  bxc4 {[%clk 0:01:24]} 21. Qxc4 {[%clk 0:01:18]}  Qc8 {[%clk 0:01:12]} 22. Bxb7 {[%clk 0:01:03]}  Rxb7 {[%clk 0:01:10]} 23. Nxd6 {[%clk 0:01:04]}  exd6 {[%clk 0:00:49]} 24. e7+ {[%clk 0:01:04]}  d5 {[%clk 0:00:36]} 25. exf8=Q+ {[%clk 0:01:05]}  Qxf8 {[%clk 0:00:36]} 26. Qa6 {[%clk 0:00:45]}  Rd7 {[%clk 0:00:33]} 27. Qe6+ {[%clk 0:00:40]}  Rf7 {[%clk 0:00:31]} 28. Bxf6 {[%clk 0:00:39]}  Bxf6 {[%clk 0:00:31]} 29. Qxd5 {[%clk 0:00:40]}  Kg7 {[%clk 0:00:32]} 30. Kg2 {[%clk 0:00:38]}  Bd4 {[%clk 0:00:30]} 31. Re2 {[%clk 0:00:39]}  h5 {[%clk 0:00:26]} 32. b4 {[%clk 0:00:38]}  Rf5 {[%clk 0:00:23]} 33. Qc4 {[%clk 0:00:33]}  Qa8+ {[%clk 0:00:21]} 34. Kg1 {[%clk 0:00:33]}  Qf3 {[%clk 0:00:20]} 35. bxc5 {[%clk 0:00:32]}  Bxc5 {[%clk 0:00:19]} 36. Qe4 {[%clk 0:00:29]}  Qxe4 {[%clk 0:00:14]} 37. Rxe4 {[%clk 0:00:30]}  Bb6 {[%clk 0:00:13]} 38. h4 {[%clk 0:00:29]}  Kf6 {[%clk 0:00:13]} 39. Kg2 {[%clk 0:00:29]}  Rd5 {[%clk 0:00:11]} 40. Rfe1 {[%clk 0:00:27]}  Rd2 {[%clk 0:00:11]} 41. R1e2 {[%clk 0:00:28]}  Rd1 {[%clk 0:00:11]} 42. Rf4+ {[%clk 0:00:26]}  Kg7 {[%clk 0:00:11]} 43. Re7+ {[%clk 0:00:26]}  Kg8 {[%clk 0:00:11]} 44. Rfe4 {[%clk 0:00:24]}  Rd2 {[%clk 0:00:10]} 45. Re2 {[%clk 0:00:25]}  Rd1 {[%clk 0:00:10]} 46. R7e6 {[%clk 0:00:25]}  Kf7 {[%clk 0:00:10]} 47. Rc6 {[%clk 0:00:24]}  Rd5 {[%clk 0:00:08]} 48. Rcc2 {[%clk 0:00:25]}  Rf5 {[%clk 0:00:08]} 49. Re4 {[%clk 0:00:25]}  Kg7 {[%clk 0:00:08]} 50. a4 {[%clk 0:00:24]}  Rd5 {[%clk 0:00:08]} 51. Ra2 {[%clk 0:00:24]}  Ra5 {[%clk 0:00:07]} 52. Rb4 {[%clk 0:00:22]}  Kf7 {[%clk 0:00:07]} 53. Rb5 {[%clk 0:00:22]}  Rxb5 {[%clk 0:00:06]} 54. axb5 {[%clk 0:00:23]}  Kf6 {[%clk 0:00:06]} 55. Re2 {[%clk 0:00:21]}  Kf5 {[%clk 0:00:06]} 56. Kf3 {[%clk 0:00:21]}  Kf6 {[%clk 0:00:06]} 57. Ke4 {[%clk 0:00:20]}  g5 {[%clk 0:00:04]} 58. hxg5+ {[%clk 0:00:18]}  Kxg5 {[%clk 0:00:05]} 59. Rc2 {[%clk 0:00:17]}  h4 {[%clk 0:00:05]} 60. gxh4+ {[%clk 0:00:17]}  Kxh4 {[%clk 0:00:05]} 61. f4 {[%clk 0:00:18]} 1-0


[Site "https://www.chess.com"]

[Event "Titled Tuesday Blitz April 05 Early 2022"]
[White "Petrova, Irina"]
[Black "Shohat, Yotam"]
[WhiteFideId "14124122"]
[BlackFideId "2813955"]
[WhiteElo "1993"]
[BlackElo "2119"]
[Result "0-1"]
[Round "04"]
[TimeControl "180+1"]
[Date "2022.04.05"]
[WhiteClock "0:00:13"]
[BlackClock "0:00:19"]

1. e4 {[%clk 0:03:00]}  c5 {[%clk 0:02:56]} 2. Nf3 {[%clk 0:03:00]}  Nc6 {[%clk 0:02:56]} 3. Bb5 {[%clk 0:02:59]}  Nf6 {[%clk 0:02:55]} 4. Bxc6 {[%clk 0:02:55]}  dxc6 {[%clk 0:02:55]} 5. d3 {[%clk 0:02:52]}  c4 {[%clk 0:02:51]} 6. e5 {[%clk 0:02:40]}  Ng4 {[%clk 0:02:28]} 7. h3 {[%clk 0:02:37]}  Nh6 {[%clk 0:02:27]} 8. Bxh6 {[%clk 0:02:22]}  gxh6 {[%clk 0:02:28]} 9. dxc4 {[%clk 0:02:22]}  Qxd1+ {[%clk 0:02:28]} 10. Kxd1 {[%clk 0:02:23]}  Rg8 {[%clk 0:02:28]} 11. g3 {[%clk 0:02:17]}  Bf5 {[%clk 0:02:04]} 12. Nbd2 {[%clk 0:02:10]}  h5 {[%clk 0:01:59]} 13. Nh4 {[%clk 0:01:51]}  Be6 {[%clk 0:01:50]} 14. c3 {[%clk 0:01:49]}  O-O-O {[%clk 0:01:47]} 15. Kc2 {[%clk 0:01:46]}  Bh6 {[%clk 0:01:41]} 16. Rad1 {[%clk 0:00:47]}  Bg5 {[%clk 0:01:38]} 17. f4 {[%clk 0:00:43]}  Bxh4 {[%clk 0:01:34]} 18. gxh4 {[%clk 0:00:43]}  Rg2 {[%clk 0:01:28]} 19. Kc1 {[%clk 0:00:44]}  Bf5 {[%clk 0:01:22]} 20. Rhe1 {[%clk 0:00:34]}  Rd3 {[%clk 0:01:04]} 21. a3 {[%clk 0:00:17]}  Rxh3 {[%clk 0:00:58]} 22. Rg1 {[%clk 0:00:17]}  Rxg1 {[%clk 0:00:38]} 23. Rxg1 {[%clk 0:00:18]}  Rxh4 {[%clk 0:00:37]} 24. Rg8+ {[%clk 0:00:18]}  Kd7 {[%clk 0:00:29]} 25. Nf3 {[%clk 0:00:18]}  Rxf4 {[%clk 0:00:27]} 26. Nd4 {[%clk 0:00:18]}  c5 {[%clk 0:00:20]} 27. Nb5 {[%clk 0:00:18]}  a6 {[%clk 0:00:20]} 28. Na7 {[%clk 0:00:16]}  h4 {[%clk 0:00:19]} 29. Rb8 {[%clk 0:00:13]}  Kc7 {[%clk 0:00:19]} 0-1


[Site "https://www.chess.com"]

[Event "Titled Tuesday Blitz April 05 Early 2022"]
[White "Pham, Tran Gia Phuc"]
[Black "Polster, Christian"]
[WhiteFideId "12415669"]
[BlackFideId "12965081"]
[WhiteElo "1789"]
[BlackElo "2337"]
[Result "1-0"]
[Round "04"]
[TimeControl "180+1"]
[Date "2022.04.05"]
[WhiteClock "0:02:04"]
[BlackClock "0:00:10"]

1. d4 {[%clk 0:03:00]}  d5 {[%clk 0:03:00]} 2. Nc3 {[%clk 0:03:01]}  Nf6 {[%clk 0:02:59]} 3. Bf4 {[%clk 0:03:01]}  a6 {[%clk 0:02:55]} 4. e3 {[%clk 0:03:01]}  c5 {[%clk 0:02:55]} 5. Nf3 {[%clk 0:03:01]}  Nc6 {[%clk 0:02:55]} 6. dxc5 {[%clk 0:03:02]}  Bg4 {[%clk 0:02:53]} 7. Be2 {[%clk 0:03:01]}  e6 {[%clk 0:02:51]} 8. O-O {[%clk 0:02:59]}  Bxc5 {[%clk 0:02:51]} 9. h3 {[%clk 0:02:59]}  Bh5 {[%clk 0:02:51]} 10. Na4 {[%clk 0:02:57]}  Ba7 {[%clk 0:02:46]} 11. Ne5 {[%clk 0:02:55]}  Bxe2 {[%clk 0:02:37]} 12. Qxe2 {[%clk 0:02:54]}  Rc8 {[%clk 0:02:33]} 13. Rad1 {[%clk 0:02:54]}  O-O {[%clk 0:02:27]} 14. c4 {[%clk 0:02:48]}  Nxe5 {[%clk 0:02:22]} 15. Bxe5 {[%clk 0:02:48]}  Rxc4 {[%clk 0:02:22]} 16. b3 {[%clk 0:02:41]}  Rc6 {[%clk 0:02:15]} 17. Qb2 {[%clk 0:02:36]}  Nd7 {[%clk 0:02:10]} 18. Bxg7 {[%clk 0:02:34]}  Re8 {[%clk 0:02:07]} 19. Bd4 {[%clk 0:02:34]}  Bb8 {[%clk 0:01:59]} 20. f4 {[%clk 0:02:33]}  e5 {[%clk 0:01:56]} 21. fxe5 {[%clk 0:02:33]}  Nxe5 {[%clk 0:01:56]} 22. Qf2 {[%clk 0:02:32]}  Qg5 {[%clk 0:01:05]} 23. Nc3 {[%clk 0:02:12]}  Rg6 {[%clk 0:00:46]} 24. Nxd5 {[%clk 0:02:08]}  Ree6 {[%clk 0:00:20]} 25. Bxe5 {[%clk 0:02:06]}  Qxe5 {[%clk 0:00:21]} 26. Qxf7+ {[%clk 0:02:05]}  Kh8 {[%clk 0:00:21]} 27. Nf4 {[%clk 0:02:05]}  Qxe3+ {[%clk 0:00:17]} 28. Kh1 {[%clk 0:02:04]}  Qe5 {[%clk 0:00:10]} 29. Rd8+ {[%clk 0:02:04]} 1-0


[Site "https://www.chess.com"]